fUST/lending_fUST_20240925
["ID","MTS","AMOUNT","RATE_DAILY","PERIOD"]
[339084162,1727223040984,-49038.8665205,0.0001998,3]
[339084163,1727223040994,-74520.666536,0.0001998,3]
[339084164,1727223041004,-196155.466082,0.0001999,3]
[339084165,1727223041014,-215472.92989322,0.0001999,3]
[339084183,1727223046164,-257.97207789,0.0001989,2]
[339084184,1727223046174,-511.78319586,0.0001999,3]
[339084200,1727223999116,-169.79136635,0.00016354,2]
[339084204,1727224122270,18975.04680243,0.0001,2]
[339084205,1727224123903,814.76581697,0.000129,2]
[339084231,1727224232229,-287.7612,0.00016,2]
[339084233,1727224232238,-153.147233,0.00016004,2]
[339084287,1727224238756,-134.613967,0.00016004,2]
[339084289,1727224238766,-287.7612,0.00016008,2]
[339084291,1727224238778,-287.7612,0.00016012,2]
[339084293,1727224238788,-287.7612,0.00016017,2]
[339084295,1727224238799,-287.7612,0.00016021,2]
[339084297,1727224238811,-287.7612,0.00016025,2]
[339084300,1727224238821,-287.7612,0.00016029,2]
[339084302,1727224238831,-287.7612,0.00016033,2]
[339084304,1727224238841,-287.7612,0.00016038,2]
[339084306,1727224238851,-287.7612,0.00016042,2]
[339084308,1727224238860,-3318.0438548,0.00016042,2]
[339084310,1727224238870,-287.7612,0.00016046,2]
[339084312,1727224238880,-287.7612,0.0001605,2]
[339084314,1727224238889,-287.7612,0.00016055,2]
[339084316,1727224238899,-287.7612,0.00016059,2]
[339084318,1727224238910,-287.7612,0.00016063,2]
[339084320,1727224238920,-287.7612,0.00016067,2]
[339084322,1727224238930,-287.7612,0.00016071,2]
[339084324,1727224238941,-287.7612,0.00016076,2]
[339084326,1727224238951,-287.7612,0.0001608,2]
[339084327,1727224238962,-3000.0,0.00016317,2]
[339084328,1727224238973,-581.89620465,0.00016354,2]
[339084329,1727224238983,-300.0,0.00016971,2]
[339084330,1727224238992,-300.0,0.00016971,2]
[339084331,1727224239002,-2683.06312049,0.00016972,2]
[339084332,1727224239034,-2262.51765274,0.00016972,2]
[339084333,1727224239057,-7008.0525792,0.00017006,2]
[339084334,1727224239068,-24900.0,0.00017016,2]
[339084335,1727224239078,-262.9863174,0.00017072,2]
[339084336,1727224239088,-1926.430626,0.00017109,2]
[339084337,1727224239099,-354.3915655,0.00017143,2]
[339084338,1727224239108,-163.286476,0.00017535,2]
[339084339,1727224239119,-163.286476,0.000176,2]
[339084340,1727224239128,-163.286476,0.00017665,2]
[339084341,1727224239139,-163.286476,0.00017731,2]
[339084343,1727224239149,-1926.430626,0.00017794,2]
[339084345,1727224239158,-163.286476,0.00017796,2]
[339084347,1727224239168,-163.286476,0.00017861,2]
[339084349,1727224239178,-163.286476,0.00017926,2]
[339084351,1727224239188,-225.77632994,0.00017957,2]
[339084353,1727224239198,-163.286476,0.00017992,2]
[339084355,1727224239208,-163.286476,0.00018057,2]
[339084357,1727224239218,-163.286476,0.00018122,2]
[339084359,1727224239228,-163.286476,0.00018187,2]
[339084361,1727224239239,-163.286476,0.00018253,2]
[339084363,1727224239250,-163.286476,0.00018318,2]
[339084365,1727224239260,-163.286476,0.00018383,2]
[339084409,1727224239666,-163.286476,0.00018448,2]
[339084411,1727224239677,-1459.13104243,0.00018479,2]
[339084474,1727224240263,-467.29958357,0.00018479,2]
[339084476,1727224240272,-420.0,0.00018537,2]
[339084478,1727224240282,-150.0,0.00018539,2]
[339084480,1727224240293,-420.0,0.00018668,2]
[339084482,1727224240305,-225.77632994,0.00018874,2]
[339084484,1727224240315,-187.5159321,0.000191,12]
[339084486,1727224240324,-162.469322,0.00019178,2]
[339084488,1727224240334,-164.666447,0.00019178,2]
[339084491,1727224240347,-6925.37172856,0.00019433,2]
[339084493,1727224240359,-150.0,0.00019506,2]
[339084495,1727224240369,-6925.37172856,0.0001951,2]
[339084497,1727224240379,-4945.58077317,0.00019576,2]
[339084499,1727224240389,-225.77632994,0.0001979,2]
[339084501,1727224240400,-500.0,0.0001979,3]
[339084503,1727224240409,-500.0,0.0001979,3]
[339084505,1727224240419,-500.0,0.0001979,3]
[339084507,1727224240429,-500.0,0.0001979,3]
[339084509,1727224240439,-266.0,0.0001979,3]
[339084511,1727224240448,-500.0,0.0001979,3]
[339084513,1727224240458,-500.0,0.0001979,3]
[339084514,1727224240467,-500.0,0.0001979,3]
[339084516,1727224240477,-500.0,0.0001979,3]
[339084518,1727224240487,-500.0,0.0001979,3]
[339084520,1727224240498,-500.0,0.0001979,3]
[339084522,1727224240508,-500.0,0.0001979,3]
[339084524,1727224240518,-500.0,0.0001979,3]
[339084526,1727224240527,-500.0,0.0001979,3]
[339084528,1727224240537,-500.0,0.0001979,3]
[339084530,1727224240547,-449.58853929,0.0001979,3]
[339084532,1727224240557,-3533.99444145,0.000198,2]
[339084534,1727224240567,-299.34044198,0.0001987,2]
[339084536,1727224240577,-500.0,0.00019873,2]
[339084538,1727224240586,-740.1,0.00019876,3]
[339084540,1727224240595,-296.04,0.00019877,3]
[339084542,1727224240605,-246.7,0.00019877,3]
[339084543,1727224240614,-299.34044194,0.00019878,2]
[339084545,1727224240624,-418.81933667,0.00019885,2]
[339084547,1727224240634,-403.25973412,0.00019885,2]
[339084549,1727224240643,-500.0,0.00019885,2]
[339084551,1727224240652,-500.0,0.00019885,2]
[339084553,1727224240662,-500.0,0.00019885,2]
[339084554,1727224240671,-173.70236837,0.00019885,2]
[339084556,1727224240680,-500.0,0.00019885,2]
[339084558,1727224240690,-500.0,0.00019885,2]
[339084560,1727224240701,-500.0,0.00019885,2]
[339084561,1727224240710,-500.0,0.00019885,2]
[339084562,1727224240722,-500.0,0.00019885,2]
[339084563,1727224240737,-500.0,0.00019885,2]
[339084564,1727224240748,-550.42611646,0.00019885,2]
[339084565,1727224240759,-500.0,0.00019885,2]
[339084566,1727224240770,-239.08636826,0.00019885,2]
[339084567,1727224240779,-299.34044194,0.00019885,2]
[339084568,1727224240791,-57468.8128056,0.00019887,3]
[339084569,1727224240803,-83523.3259261,0.00019887,3]
[339084570,1727224240814,-114937.625611,0.0001989,3]
[339084571,1727224240825,-167046.651852,0.0001989,3]
[339084572,1727224240837,-151.0,0.0001989,2]
[339084573,1727224240848,-151.0,0.0001989,2]
[339084574,1727224240860,-299.34044194,0.00019893,2]
[339084575,1727224240870,-110812.62832868,0.000199,2]
[339084576,1727224240880,-299.34044194,0.000199,2]
[339084577,1727224240889,-151.0,0.000199,2]
[339084578,1727224240899,-57468.8128056,0.0001996,3]
[339084579,1727224240910,-83523.3259261,0.0001996,3]
[339084580,1727224240921,-151.0,0.00019961,2]
[339084581,1727224240931,-151.0,0.0001997,2]
[339084582,1727224240943,-151.0,0.0001997,2]
[339084583,1727224240954,-114937.625611,0.0001997,3]
[339084584,1727224240965,-83523.3259261,0.0001997,3]
[339084585,1727224240980,-500.0,0.00019973,2]
[339084586,1727224240990,-500.0,0.00019973,2]
[339084587,1727224240999,-500.0,0.00019973,2]
[339084588,1727224241009,-500.0,0.00019973,2]
[339084589,1727224241018,-500.0,0.00019973,2]
[339084590,1727224241028,-500.83800138,0.00019973,2]
[339084591,1727224241037,-500.0,0.00019973,2]
[339084592,1727224241047,-500.0,0.00019973,2]
[339084593,1727224241063,-500.0,0.00019973,2]
[339084594,1727224241072,-606.96312189,0.00019973,2]
[339084595,1727224241082,-300.35288752,0.00019973,2]
[339084596,1727224241091,-502.00599836,0.00019973,2]
[339084597,1727224241101,-500.0,0.00019973,2]
[339084598,1727224241110,-500.0,0.00019973,2]
[339084599,1727224241120,-492.381557,0.0001998,2]
[339084600,1727224241129,-492.381557,0.0001998,2]
[339084601,1727224241138,-151.0,0.0001998,2]
[339084602,1727224241148,-151.0,0.0001998,2]
[339084603,1727224241158,-151.0,0.0001998,2]
[339084604,1727224241167,-162.40887818,0.0001998,2]
[339084605,1727224241176,-151.0,0.0001998,2]
[339084606,1727224241186,-151.0,0.0001998,2]
[339084607,1727224241202,-151.0,0.0001998,2]
[339084608,1727224241215,-151.0,0.0001998,2]
[339084609,1727224241232,-1471.408817,0.0001998,2]
[339084610,1727224241242,-1471.408817,0.0001998,2]
[339084611,1727224241252,-335.553956,0.0001998,2]
[339084612,1727224241262,-335.553956,0.0001998,2]
[339084613,1727224241272,-171.491139,0.0001998,2]
[339084614,1727224241282,-171.491139,0.0001998,2]
[339084615,1727224241292,-164.263783,0.0001998,2]
[339084616,1727224241302,-164.263783,0.0001998,2]
[339084617,1727224241312,-616.429491,0.0001998,2]
[339084618,1727224241322,-616.429491,0.0001998,2]
[339084619,1727224241332,-151.0,0.0001998,2]
[339084620,1727224241342,-151.0,0.0001998,2]
[339084621,1727224241352,-1523.665873,0.0001998,2]
[339084622,1727224241362,-1523.665873,0.0001998,2]
[339084623,1727224241371,-321.477418,0.0001998,2]
[339084624,1727224241381,-321.477418,0.0001998,2]
[339084625,1727224241390,-166.026231,0.0001998,2]
[339084626,1727224241400,-166.026231,0.0001998,2]
[339084627,1727224241409,-151.0,0.0001998,2]
[339084628,1727224241419,-164.920316,0.0001998,2]
[339084629,1727224241430,-164.920316,0.0001998,2]
[339084630,1727224241440,-826.377019,0.0001998,2]
[339084631,1727224241449,-826.377019,0.0001998,2]
[339084632,1727224241458,-795.48522132,0.00019988,2]
[339084633,1727224241472,-310.0,0.0001999,2]
[339084634,1727224241482,-310.0,0.0001999,2]
[339084635,1727224241491,-180.143587,0.0001999,2]
[339084636,1727224241501,-492.381557,0.0001999,2]
[339084637,1727224241510,-492.381557,0.0001999,2]
[339084638,1727224241520,-492.381557,0.0001999,2]
[339084639,1727224241530,-492.381557,0.0001999,2]
[339084640,1727224241539,-151.0,0.0001999,2]
[339084641,1727224241549,-151.0,0.0001999,2]
[339084642,1727224241559,-151.0,0.0001999,2]
[339084643,1727224241568,-151.0,0.0001999,2]
[339084644,1727224241577,-151.0,0.0001999,2]
[339084645,1727224241587,-151.0,0.0001999,2]
[339084646,1727224241597,-151.0,0.0001999,2]
[339084647,1727224241607,-151.0,0.0001999,2]
[339084648,1727224241616,-151.0,0.0001999,2]
[339084649,1727224241626,-156.922161,0.0001999,2]
[339084650,1727224241635,-393.069928,0.0001999,2]
[339084651,1727224241645,-393.069928,0.0001999,2]
[339084652,1727224241655,-393.069928,0.0001999,2]
[339084653,1727224241664,-393.069928,0.0001999,2]
[339084654,1727224241674,-151.0,0.0001999,2]
[339084655,1727224241684,-151.0,0.0001999,2]
[339084656,1727224241693,-1404.349973,0.0001999,2]
[339084657,1727224241703,-1404.349973,0.0001999,2]
[339084658,1727224241712,-151.0,0.0001999,2]
[339084659,1727224241723,-151.0,0.0001999,2]
[339084660,1727224241733,-1404.349973,0.0001999,2]
[339084661,1727224241743,-1404.349973,0.0001999,2]
[339084662,1727224241754,-151.0,0.0001999,2]
[339084663,1727224241763,-280.702346,0.0001999,2]
[339084664,1727224241773,-536.547583,0.0001999,2]
[339084665,1727224241783,-536.547583,0.0001999,2]
[339084666,1727224241794,-536.547583,0.0001999,2]
[339084667,1727224241803,-431.19404262,0.0001999,2]
[339084714,1727224243486,-18.86570737,0.0001999,2]
[339084770,1727225159340,1273.3273939,0.00013853,2]
[339084771,1727225190214,3230.11445,0.00013886,2]
[339084786,1727225338114,375.843785,0.00013866,2]
[339084802,1727225421247,-161.349314,0.00026027,120]
[339084803,1727225421302,-1000.0,0.00027,120]
[339084804,1727225421330,-3136.12735835,0.00027,120]
[339084805,1727225421359,-1145.72332765,0.00027,120]
[339084806,1727225429734,24900.0,0.00013888,2]
[339084852,1727225432660,-871.5975494,0.00014325,2]
[339084854,1727225432669,-2742.6429008,0.00014332,2]
[339084856,1727225432679,-250.0,0.00014432,2]
[339084858,1727225432689,-250.0,0.00014472,2]
[339084860,1727225432700,-250.0,0.00014512,2]
[339084862,1727225432710,-250.0,0.00014551,2]
[339084864,1727225432721,-3230.11445,0.00014571,2]
[339084866,1727225432732,-250.0,0.00014591,2]
[339084868,1727225432743,-250.0,0.0001463,2]
[339084871,1727225432754,-250.0,0.0001467,2]
[339084873,1727225432764,-250.0,0.0001471,2]
[339084875,1727225432773,-250.0,0.00014749,2]
[339084877,1727225432782,-300.0,0.00014788,2]
[339084879,1727225432791,-300.0,0.00014788,2]
[339084881,1727225432800,-250.0,0.00014789,2]
[339084883,1727225432811,-250.0,0.00014828,2]
[339084885,1727225432823,-250.0,0.00014868,2]
[339084887,1727225432832,-250.0,0.00014907,2]
[339084889,1727225432844,-250.0,0.00014947,2]
[339084891,1727225432855,-250.0,0.00014987,2]
[339084893,1727225432864,-250.0,0.00015026,2]
[339084895,1727225432873,-250.0,0.00015066,2]
[339084897,1727225432884,-250.0,0.00015105,2]
[339084900,1727225432896,-250.0,0.00015145,2]
[339084902,1727225432907,-250.0,0.00015185,2]
[339084904,1727225432918,-4466.76301339,0.0001524,2]
[339084906,1727225432928,-3230.11445,0.00015256,2]
[339084908,1727225432938,-2662.93729077,0.000153,2]
[339084910,1727225432948,-553.48918889,0.00015339,2]
[339084913,1727225432959,-5410.0,0.0001534,2]
[339084915,1727225432968,-420.0,0.00016188,2]
[339084917,1727225432977,-420.0,0.00016267,2]
[339084919,1727225432986,-4466.76301333,0.00017702,2]
[339084921,1727225432996,-587.0,0.00017721,2]
[339084923,1727225433005,-587.0,0.00017893,2]
[339084925,1727225433015,-1051.39958418,0.00018,2]
[339084927,1727225433024,-166.250463,0.00019178,2]
[339084929,1727225433033,-164.929272,0.00019178,2]
[339084931,1727225433043,-823.0,0.00019398,2]
[339084933,1727225433052,-823.0,0.00019682,2]
[339084935,1727225433062,-299.34044194,0.00019861,2]
[339084937,1727225433072,-3180.59499726,0.0001988,2]
[339084939,1727225433081,-210.865877,0.0001989,2]
[339084941,1727225433090,-210.865877,0.0001989,2]
[339084943,1727225433101,-210.865877,0.0001989,2]
[339084945,1727225433110,-210.865877,0.0001989,2]
[339084947,1727225433120,-151.0,0.0001989,2]
[339084949,1727225433131,-151.0,0.0001989,2]
[339084951,1727225433140,-151.0,0.0001989,2]
[339084953,1727225433150,-151.0,0.0001989,2]
[339084955,1727225433161,-151.0,0.0001989,2]
[339084957,1727225433170,-151.0,0.0001989,2]
[339084959,1727225433179,-151.0,0.0001989,2]
[339084962,1727225433190,-151.0,0.0001989,2]
[339084964,1727225433199,-795.48522132,0.00019898,2]
[339084965,1727225433207,-210.865877,0.000199,2]
[339084967,1727225433217,-210.865877,0.000199,2]
[339084969,1727225433226,-151.0,0.000199,2]
[339084971,1727225433235,-151.0,0.000199,2]
[339084973,1727225433244,-151.0,0.000199,2]
[339084976,1727225433255,-151.0,0.000199,2]
[339084978,1727225433264,-695.12373039,0.000199,2]
[339084980,1727225433274,-378.27,0.00019941,3]
[339084982,1727225433284,-167.36045778,0.0001995,2]
[339084984,1727225433293,-282.28181389,0.0001995,2]
[339084986,1727225433302,-293.17353567,0.0001995,2]
[339084988,1727225433311,-471.59165786,0.0001995,2]
[339084990,1727225433321,-500.0,0.0001995,2]
[339084991,1727225433330,-535.29828152,0.0001995,2]
[339084993,1727225433340,-500.0,0.0001995,2]
[339084995,1727225433351,-500.0,0.0001995,2]
[339084997,1727225433361,-500.0,0.0001995,2]
[339085000,1727225433370,-500.0,0.0001995,2]
[339085002,1727225433381,-500.0,0.0001995,2]
[339085004,1727225433390,-500.0,0.0001995,2]
[339085006,1727225433400,-171.39768707,0.0001995,2]
[339085056,1727225438781,-189.13,0.00019941,3]
[339085057,1727225438791,-328.60231293,0.0001995,2]
[339085058,1727225438801,-180.1141605,0.0001995,2]
[339085059,1727225438811,-48848.4908848,0.00019951,3]
[339085060,1727225438820,-72570.856184,0.00019951,3]
[339085061,1727225438830,-48848.4908848,0.0001996,3]
[339085062,1727225438840,-72570.856184,0.0001996,3]
[339085063,1727225438850,-210.865877,0.00019961,2]
[339085064,1727225438863,-210.865877,0.00019961,2]
[339085065,1727225438878,-151.0,0.00019961,2]
[339085066,1727225438887,-151.0,0.00019961,2]
[339085067,1727225438897,-151.0,0.00019961,2]
[339085068,1727225438907,-230.501263,0.00019961,2]
[339085069,1727225438916,-210.865877,0.0001997,2]
[339085070,1727225438926,-210.865877,0.0001997,2]
[339085071,1727225438935,-210.865877,0.0001997,2]
[339085072,1727225438945,-210.865877,0.0001997,2]
[339085073,1727225438956,-151.0,0.0001997,2]
[339085074,1727225438965,-151.0,0.0001997,2]
[339085075,1727225438975,-151.0,0.0001997,2]
[339085076,1727225438984,-151.0,0.0001997,2]
[339085077,1727225438994,-151.0,0.0001997,2]
[339085078,1727225439004,-151.0,0.0001997,2]
[339085079,1727225439014,-48848.4908848,0.0001997,3]
[339085080,1727225439024,-72163.27245152,0.0001997,3]
[339085081,1727225439041,-407.58373248,0.0001997,3]
[339085082,1727225439051,-48848.4908848,0.0001997,3]
[339085083,1727225439060,-8708.92090941,0.0001997,3]
[339085107,1727225440406,-63861.93527459,0.0001997,3]
[339085109,1727225440417,-506.28521145,0.00019973,2]
[339085111,1727225440427,-471.73219564,0.00019973,2]
[339085113,1727225440436,-500.0,0.00019973,2]
[339085115,1727225440448,-500.0,0.00019973,2]
[339085116,1727225440461,-500.0,0.00019973,2]
[339085118,1727225440471,-500.0,0.00019973,2]
[339085120,1727225440480,-500.0,0.00019973,2]
[339085121,1727225440490,-500.0,0.00019973,2]
[339085122,1727225440499,-500.0,0.00019973,2]
[339085123,1727225440509,-500.0,0.00019973,2]
[339085124,1727225440518,-502.00599836,0.00019973,2]
[339085125,1727225440527,-500.0,0.00019973,2]
[339085126,1727225440539,-500.0,0.00019973,2]
[339085127,1727225440549,-500.0,0.00019973,2]
[339085128,1727225440559,-500.0,0.00019973,2]
[339085129,1727225440568,-414.58355694,0.00019973,2]
[339085130,1727225440579,-267.398921,0.0001998,2]
[339085131,1727225440592,-267.398921,0.0001998,2]
[339085132,1727225440604,-295.731242,0.0001998,2]
[339085133,1727225440616,-295.731242,0.0001998,2]
[339085134,1727225440627,-151.0,0.0001998,2]
[339085135,1727225440639,-826.377019,0.0001998,2]
[339085136,1727225440652,-826.377019,0.0001998,2]
[339085137,1727225440663,-151.0,0.0001998,2]
[339085138,1727225440673,-488.21087,0.0001998,2]
[339085139,1727225440683,-488.21087,0.0001998,2]
[339085140,1727225440692,-665.87059,0.0001998,2]
[339085141,1727225440702,-665.87059,0.0001998,2]
[339085142,1727225440713,-1404.349973,0.0001998,2]
[339085143,1727225440722,-243.058089,0.0001998,2]
[339085144,1727225440732,-243.058089,0.0001998,2]
[339085145,1727225440742,-151.0,0.0001998,2]
[339085146,1727225440751,-151.0,0.0001998,2]
[339085147,1727225440760,-151.0,0.0001998,2]
[339085148,1727225440782,-151.0,0.0001998,2]
[339085149,1727225440793,-804.096431,0.0001998,2]
[339085150,1727225440803,-804.096431,0.0001998,2]
[339085151,1727225440812,-1987.846731,0.0001998,2]
[339085152,1727225440822,-151.0,0.0001998,2]
[339085153,1727225440832,-1987.846731,0.0001998,2]
[339085154,1727225440842,-335.553956,0.0001998,2]
[339085155,1727225440852,-335.553956,0.0001998,2]
[339085156,1727225440864,-651.867797,0.0001998,2]
[339085157,1727225440874,-651.867797,0.0001998,2]
[339085158,1727225440885,-151.0,0.0001998,2]
[339085159,1727225440895,-280.503852,0.0001998,2]
[339085160,1727225440905,-151.0,0.0001998,2]
[339085161,1727225440915,-151.0,0.0001998,2]
[339085162,1727225440925,-151.0,0.0001998,2]
[339085163,1727225440937,-151.0,0.0001998,2]
[339085164,1727225440947,-151.0,0.0001998,2]
[339085165,1727225440958,-236.036597,0.0001998,2]
[339085166,1727225440968,-541.79505,0.0001998,2]
[339085167,1727225440978,-236.036597,0.0001998,2]
[339085168,1727225440988,-541.79505,0.0001998,2]
[339085169,1727225440998,-442.765207,0.0001998,2]
[339085170,1727225441008,-442.765207,0.0001998,2]
[339085171,1727225441018,-2030.925849,0.0001998,2]
[339085172,1727225441028,-214.144162,0.0001998,2]
[339085173,1727225441037,-2030.925849,0.0001998,2]
[339085174,1727225441047,-214.144162,0.0001998,2]
[339085175,1727225441057,-151.0,0.0001998,2]
[339085176,1727225441068,-171.491139,0.0001998,2]
[339085177,1727225441080,-171.491139,0.0001998,2]
[339085178,1727225441094,-6658.904781,0.0001998,2]
[339085179,1727225441106,-6658.904781,0.0001998,2]
[339085180,1727225441118,-1654.364262,0.0001998,2]
[339085181,1727225441130,-1654.364262,0.0001998,2]
[339085182,1727225441140,-1523.665873,0.0001998,2]
[339085183,1727225441152,-1523.665873,0.0001998,2]
[339085184,1727225441164,-97696.9817696,0.0001998,3]
[339085185,1727225441174,-145141.712368,0.0001998,3]
[339085186,1727225441184,-86.48783301,0.0001999,2]
[339085187,1727225441194,-2684.605724,0.0001999,2]
[339085188,1727225441204,-2684.605724,0.0001999,2]
[339085189,1727225441214,-2684.605724,0.0001999,2]
[339085190,1727225441224,-2684.605724,0.0001999,2]
[339085191,1727225441235,-151.0,0.0001999,2]
[339085192,1727225441246,-151.0,0.0001999,2]
[339085193,1727225441256,-151.0,0.0001999,2]
[339085194,1727225441266,-151.0,0.0001999,2]
[339085195,1727225441277,-164.263783,0.0001999,2]
[339085196,1727225441287,-164.263783,0.0001999,2]
[339085197,1727225441297,-6562.54911042,0.0001999,2]
[339085345,1727225568684,-866.02053318,0.00021,30]
[339085346,1727225568707,-500.0,0.00021,30]
[339085347,1727225568730,-607.7783795,0.00021,30]
[339085348,1727225568752,-500.0,0.00021,30]
[339085349,1727225568774,-767.10108732,0.00021,30]
[339085350,1727225569357,-0.01742948,0.00021,30]
[339085352,1727225675760,18562.29,0.00014,2]
[339085353,1727225685858,-6000.0,0.00024,60]
[339085354,1727226002970,500.0,0.0001,2]
[339085355,1727226003344,175.34541832,0.0001,2]
[339085414,1727226631867,-24900.0,0.00016504,2]
[339085416,1727226631877,-187.921893,0.00016995,2]
[339085418,1727226631887,-250.0,0.00016998,2]
[339085420,1727226631897,-250.0,0.00017045,2]
[339085422,1727226631907,-250.0,0.00017091,2]
[339085424,1727226631918,-250.0,0.00017138,2]
[339085425,1727226631927,-2263.82010321,0.00017159,2]
[339085442,1727226632100,-736.17989679,0.00017159,2]
[339085444,1727226632111,-150.0,0.00017161,2]
[339085446,1727226632121,-250.0,0.00017185,2]
[339085448,1727226632131,-250.0,0.00017231,2]
[339085450,1727226632142,-444.1932642,0.00017271,2]
[339085452,1727226632152,-250.0,0.00017278,2]
[339085453,1727226632162,-3532.470201,0.00017316,2]
[339085455,1727226632171,-250.0,0.00017325,2]
[339085457,1727226632181,-250.0,0.00017371,2]
[339085459,1727226632190,-250.0,0.00017418,2]
[339085461,1727226632201,-300.0,0.00017463,2]
[339085463,1727226632211,-250.0,0.00017464,2]
[339085465,1727226632221,-250.0,0.00017511,2]
[339085467,1727226632231,-250.0,0.00017558,2]
[339085469,1727226632240,-250.0,0.00017604,2]
[339085471,1727226632251,-250.0,0.00017651,2]
[339085473,1727226632261,-250.0,0.00017698,2]
[339085474,1727226632271,-250.0,0.00017744,2]
[339085476,1727226632281,-250.0,0.00017791,2]
[339085478,1727226632291,-250.0,0.00017838,2]
[339085480,1727226632302,-250.0,0.00017884,2]
[339085482,1727226632313,-3532.470201,0.00018001,2]
[339085484,1727226632323,-3350.07226005,0.00018469,2]
[339085486,1727226632334,-193.02584237,0.00018569,2]
[339085488,1727226632345,-236.86643405,0.00018637,2]
[339085490,1727226632356,-236.86643404,0.00018656,2]
[339085492,1727226632365,-236.86643404,0.00018675,2]
[339085494,1727226632376,-3532.470201,0.00018686,2]
[339085496,1727226632386,-160.0,0.00019133,3]
[339085498,1727226632397,-162.813062,0.00019178,2]
[339085500,1727226632407,-164.666447,0.00019178,2]
[339085502,1727226632417,-420.0,0.0001921,2]
[339085504,1727226632428,-160.0,0.00019269,4]
[339085505,1727226632438,-160.0,0.00019405,5]
[339085506,1727226632449,-160.0,0.00019541,6]
[339085507,1727226632461,-160.0,0.00019678,7]
[339085508,1727226632471,-160.0,0.00019814,8]
[339085509,1727226632482,-1934.07577621,0.0001989,2]
[339085510,1727226632496,-704.49414432,0.0001989,2]
[339085609,1727226637999,-500.0,0.00016503,2]
[339085611,1727226638009,-500.0,0.00016503,2]
[339085612,1727226638019,-315.46252277,0.00016503,2]
[339085613,1727226638029,-500.0,0.00016503,2]
[339085614,1727226638039,-500.0,0.00016503,2]
[339085615,1727226638049,-500.0,0.00016503,2]
[339085616,1727226638058,-500.0,0.00016503,2]
[339085617,1727226638068,-585.041219,0.00016503,2]
[339085618,1727226638079,-223.96557704,0.0001989,2]
[339085619,1727226638089,-283.7,0.00019941,3]
[339085620,1727226638109,-851.12,0.00019941,3]
[339085621,1727226638121,-197.59726972,0.0001995,2]
[339085622,1727226638133,-205.22147497,0.0001995,2]
[339085623,1727226638143,-276.07991235,0.0001995,2]
[339085624,1727226638155,-500.0,0.0001995,2]
[339085625,1727226638166,-500.0,0.0001995,2]
[339085626,1727226638175,-174.70879706,0.0001995,2]
[339085627,1727226638186,-500.0,0.0001995,2]
[339085628,1727226638196,-500.0,0.0001995,2]
[339085629,1727226638206,-500.0,0.0001995,2]
[339085630,1727226638217,-500.0,0.0001995,2]
[339085631,1727226638227,-160.0,0.0001995,9]
[339085632,1727226638236,-58618.1890617,0.00019951,3]
[339085633,1727226638247,-299322.78463774,0.00019951,3]
[339085647,1727226639670,-70788.58190026,0.00019951,3]
[339085648,1727226639680,-7327.27363271,0.0001996,3]
[339085649,1727226639690,-6786.99532999,0.00019968,2]
[339085650,1727226639700,-151.0,0.0001997,2]
[339085651,1727226639709,-14654.5472654,0.0001997,3]
[339085652,1727226639718,-471.73219564,0.00019973,2]
[339085653,1727226639728,-500.0,0.00019973,2]
[339085654,1727226639740,-500.0,0.00019973,2]
[339085655,1727226639750,-506.28521145,0.00019973,2]
[339085656,1727226639762,-500.0,0.00019973,2]